bitfinex/quotes_BTCUSD_20251202
["timestamp","ask_amount","ask_price","bid_price","bid_amount"]
[1764709351399,0.09586,91108.0,91106.0,0.23050021]
[1764709351606,0.03364,91107.0,91106.0,0.23050021]
[1764709351828,0.08991,91107.0,91106.0,0.23050021]
[1764709352251,0.03364,91107.0,91106.0,0.23050021]
[1764709352743,0.03364,91107.0,91105.0,0.23050054]
[1764709352744,0.03364,91107.0,91104.0,0.2305055]
[1764709352964,0.03364,91107.0,91073.0,0.43920047]
[1764709352965,0.01097646,91104.0,91098.0,0.01097718]
[1764709353243,0.05775,91099.0,91098.0,0.21954321]
[1764709353449,0.01816,91099.0,91098.0,0.22512419]
[1764709353757,0.01816,91099.0,91098.0,0.21954321]
[1764709354355,0.01816,91099.0,91098.0,0.22154321]
[1764709354934,0.0535,91099.0,91098.0,0.22154321]
[1764709355258,0.10854,91099.0,91098.0,0.002]
[1764709355460,0.65108137,91099.0,91098.0,0.002]
[1764709355807,0.0109773,91097.0,91092.0,0.01097791]
[1764709356028,0.0109773,91097.0,91093.0,0.01097779]
[1764709356225,0.05483,91096.0,91093.0,0.01097779]
[1764709356446,0.03652,91094.0,91093.0,0.01097779]
[1764709356861,0.09135,91094.0,91093.0,0.21955583]
[1764709357903,0.03652,91094.0,91093.0,0.21955583]
[1764709359987,0.03652,91094.0,91093.0,0.22055583]
[1764709363531,0.09135,91094.0,91093.0,0.22055583]
[1764709363735,0.01816,91099.0,91098.0,0.21954378]
[1764709363902,4.67e-05,91109.0,91107.0,0.2195216]
[1764709364099,0.0109761,91107.0,91102.0,0.0109767]
[1764709364300,0.05723,91103.0,91102.0,0.21953414]
[1764709365331,0.11206,91103.0,91102.0,0.21953414]
[1764709367195,0.05723,91103.0,91102.0,0.21953414]
[1764709367778,0.11206,91103.0,91102.0,0.21953414]
[1764709368374,0.11206,91103.0,91095.0,0.21954984]
[1764709368578,0.03652,91100.0,91093.0,0.01097779]
[1764709368806,0.01097682,91101.0,91093.0,0.01097779]
[1764709368807,0.03652,91097.0,91093.0,0.01097779]
[1764709369004,0.02071,91103.0,91102.0,0.21953414]
[1764709369334,0.02071,91103.0,91101.0,0.21953655]
[1764709369865,0.2,91108.0,91107.0,0.2195221]
[1764709372519,0.2,91108.0,91107.0,0.2215221]
[1764709381780,0.23652,91108.0,91107.0,0.2215221]
[1764709381979,0.29135,91108.0,91107.0,0.002]
[1764709382203,0.2,91108.0,91107.0,0.2215221]
[1764709382799,0.199736,91108.0,91107.0,0.2195221]
[1764709382998,0.199736,91108.0,91107.0,0.2205221]
[1764709384523,0.199736,91108.0,91107.0,0.31602766]
[1764709384696,0.199736,91108.0,91107.0,0.3104521]
[1764709385278,0.199736,91108.0,91107.0,0.3094521]
[1764709385798,0.199736,91108.0,91107.0,0.3124521]
[1764709385996,0.199736,91108.0,91107.0,0.3134521]
[1764709386604,0.199736,91108.0,91107.0,0.3308521]
[1764709392158,0.199736,91108.0,91107.0,0.3134521]
[1764709392477,0.199736,91108.0,91107.0,0.3308521]
[1764709393736,0.199736,91108.0,91107.0,0.2235221]
[1764709394639,0.199736,91108.0,91107.0,0.2225221]
[1764709394962,0.199736,91108.0,91107.0,0.3121721]
[1764709395401,0.199736,91108.0,91107.0,0.2205221]
[1764709395925,0.199736,91108.0,91107.0,0.2225221]
[1764709396331,0.199736,91108.0,91107.0,0.2575621]
[1764709396569,0.03884446,91141.0,91107.0,0.2575621]
[1764709396570,0.01914,91148.0,91145.0,0.01097152]
[1764709396716,0.01914,91164.0,91154.0,0.23247891]
[1764709396902,0.01914,91164.0,91154.0,0.26751891]
[1764709397893,0.01914,91164.0,91154.0,0.23447891]
[1764709398089,0.01914,91164.0,91154.0,0.23247891]
[1764709398315,0.02742039,91173.0,91154.0,0.23247891]
[1764709398316,0.02899442,91187.0,91154.0,0.32112891]
[1764709398638,0.0806,91189.0,91154.0,0.7096519]
[1764709398840,0.0806,91189.0,91154.0,0.7106519]
[1764709399382,0.02711,91189.0,91186.0,0.01096659]
[1764709399604,0.02711,91189.0,91188.0,0.2193271]
[1764709400421,0.02810875,91189.0,91188.0,0.2193271]
[1764709401344,0.02810875,91189.0,91188.0,0.2203271]
[1764709401531,0.02810875,91189.0,91188.0,0.001]
[1764709402114,0.11666875,91189.0,91188.0,0.001]
[1764709402326,0.43966875,91189.0,91188.0,0.001]
[1764709403501,0.43966875,91189.0,91186.0,0.23029786]
[1764709403699,0.43966875,91189.0,91168.0,0.21937459]
[1764709403700,0.01096779,91176.0,91168.0,0.21937459]
[1764709403910,0.01096779,91176.0,91170.0,0.2193704]
[1764709403911,0.23032431,91176.0,91170.0,0.2193704]
[1764709404111,0.02741979,91175.0,91173.0,0.21936237]
[1764709404322,0.03507,91171.0,91170.0,0.01096852]
[1764709404552,0.06218,91171.0,91170.0,0.01096852]
[1764709405488,0.06218,91171.0,91170.0,0.01196852]
[1764709405889,0.06218,91171.0,91170.0,0.01296852]
[1764709406726,0.335038,91171.0,91170.0,0.001]
[1764709406938,0.335038,91171.0,91170.0,0.003]
[1764709407434,0.658038,91171.0,91170.0,0.003]
[1764709407679,0.658038,91171.0,91170.0,0.002]
[1764709407978,0.658038,91171.0,91145.0,0.01097152]
[1764709407979,0.33396984,91159.0,91154.0,0.23037814]
[1764709408390,0.33396984,91159.0,91156.0,0.0109702]
[1764709408391,0.05349,91158.0,91156.0,0.0109702]
[1764709408673,0.05349,91158.0,91156.0,0.21940409]
[1764709408879,0.06218,91157.0,91156.0,0.21940409]
[1764709409565,0.01097092,91150.0,91142.0,0.01097189]
[1764709409785,0.01097044,91154.0,91149.0,0.01097104]
[1764709409993,0.01097056,91153.0,91148.0,0.23039304]
[1764709410213,0.06446056,91153.0,91149.0,0.01097104]
[1764709410422,0.02711,91157.0,91155.0,0.21940632]
[1764709410658,0.02711,91157.0,91156.0,0.21940409]
[1764709411364,0.06218,91157.0,91156.0,0.21940409]
[1764709411585,0.06218,91157.0,91156.0,0.24776421]
[1764709411820,0.06218,91157.0,91156.0,0.21940409]
[1764709412678,0.11567,91157.0,91156.0,0.21940409]
[1764709413114,0.11567,91157.0,91156.0,0.22040409]
[1764709413545,0.02711,91157.0,91156.0,0.22040409]
[1764709414315,0.02711,91157.0,91156.0,0.22595015]
[1764709414524,0.0174,91163.0,91162.0,0.21938965]
[1764709415031,0.05307,91163.0,91162.0,0.21938965]
[1764709415270,0.05330507,91163.0,91162.0,0.21938965]
[1764709415463,0.10686507,91163.0,91162.0,0.21938965]
[1764709415591,0.05330507,91163.0,91162.0,0.21938965]
[1764709416449,0.10863507,91163.0,91162.0,0.21938965]
[1764709416848,0.10902205,91163.0,91162.0,0.21938965]
[1764709417150,0.05369205,91163.0,91162.0,0.21938965]
[1764709417501,0.10902205,91163.0,91162.0,0.21938965]
[1764709417693,0.00062205,91163.0,91162.0,0.21938965]
[1764709417931,0.00062205,91163.0,91162.0,0.3174921]
[1764709418115,0.00062205,91163.0,91162.0,0.63494965]
[1764709419526,0.00062205,91163.0,91162.0,0.63694965]
[1764709419728,0.00062205,91163.0,91162.0,0.63494965]
[1764709420070,0.00062205,91163.0,91162.0,0.63994965]
[1764709420675,1e-08,91163.0,91162.0,0.70147264]
[1764709420877,1e-08,91163.0,91162.0,0.70247264]
[1764709421723,1e-08,91163.0,91162.0,1.22290264]
[1764709422753,1e-08,91163.0,91162.0,1.23630264]
[1764709422957,1e-08,91163.0,91162.0,1.21790264]
[1764709423153,1e-08,91163.0,91162.0,1.11687264]
[1764709423358,1e-08,91163.0,91162.0,1.11587264]
[1764709423969,1e-08,91163.0,91162.0,1.11487264]
[1764709424377,0.00100001,91163.0,91162.0,1.11487264]
[1764709425644,0.00100001,91163.0,91162.0,1.03494965]
[1764709425860,0.00100001,91163.0,91162.0,0.72934965]
[1764709426259,0.00100001,91163.0,91162.0,1.05234965]
[1764709426469,0.00100001,91163.0,91162.0,0.72934965]
[1764709427085,0.00100001,91163.0,91162.0,1.05234965]
[1764709429040,0.00100001,91163.0,91162.0,0.32934965]
[1764709430276,0.00100001,91163.0,91162.0,0.33034965]
[1764709430486,1e-08,91163.0,91162.0,0.33034965]
[1764709430680,1e-08,91163.0,91162.0,0.32934965]
[1764709430983,1e-08,91163.0,91162.0,0.33034965]
[1764709431727,1e-08,91163.0,91162.0,0.33334965]
[1764709432135,1e-08,91163.0,91162.0,0.32934965]
[1764709432352,1e-08,91163.0,91162.0,0.33334965]
[1764709432584,1e-08,91163.0,91162.0,0.33434965]
[1764709434481,1e-08,91163.0,91162.0,0.65734965]
[1764709435674,1e-08,91163.0,91162.0,0.71987264]
[1764709438343,0.02733,91199.0,91198.0,0.21930305]
[1764709438344,0.02608679,91199.0,91198.0,0.21930305]
[1764709438560,0.02620287,91199.0,91198.0,0.21930305]
[1764709438777,0.00011608,91199.0,91198.0,0.21930305]
[1764709439383,0.00111608,91199.0,91198.0,0.21930305]
[1764709439587,0.00211608,91199.0,91198.0,0.21930305]
[1764709439748,0.00111608,91199.0,91198.0,0.21930305]
[1764709439967,0.00011608,91199.0,91198.0,0.21930305]
[1764709440164,0.00111608,91199.0,91198.0,0.21930305]
[1764709441356,0.00011608,91199.0,91198.0,0.21930305]
[1764709441565,0.00011608,91199.0,91198.0,0.31386305]
[1764709442382,0.00011608,91199.0,91198.0,0.69738604]
[1764709442564,0.00011608,91199.0,91198.0,0.69838604]
[1764709442762,0.00011608,91199.0,91198.0,0.70138604]
[1764709443135,0.00011608,91199.0,91198.0,0.69738604]
[1764709443264,0.00011608,91199.0,91198.0,0.65391604]
[1764709443468,0.00011608,91199.0,91198.0,0.65491604]
[1764709444158,0.00117341,91199.0,91198.0,0.65491604]
[1764709444377,0.00117341,91199.0,91198.0,0.65191604]
[1764709444768,0.00217341,91199.0,91198.0,0.65091604]
[1764709444970,0.00317341,91199.0,91198.0,0.58839305]
[1764709445174,0.00317341,91199.0,91198.0,0.17283305]
[1764709445383,0.00217341,91199.0,91198.0,0.17283305]
[1764709445586,0.00117341,91199.0,91198.0,0.17283305]
[1764709445789,0.00217341,91199.0,91198.0,0.17283305]
[1764709445990,0.00317341,91199.0,91198.0,0.17283305]
[1764709446195,0.00117341,91199.0,91198.0,0.17283305]
[1764709446397,0.00117341,91199.0,91198.0,0.20841305]
[1764709446585,0.00117341,91199.0,91198.0,0.20941305]
[1764709446828,0.00117341,91199.0,91198.0,0.17383305]
[1764709447561,0.00117341,91199.0,91198.0,0.17283305]
[1764709447838,0.09141341,91199.0,91198.0,0.17283305]
[1764709448010,0.09141341,91199.0,91198.0,0.17583305]
[1764709448317,0.03595341,91199.0,91198.0,0.17683305]
[1764709448536,0.00117341,91199.0,91198.0,0.17683305]
[1764709448730,0.00117341,91199.0,91198.0,0.17283305]
[1764709449026,0.00117341,91199.0,91198.0,0.17483305]
[1764709449232,0.00117341,91199.0,91198.0,0.17283305]
[1764709449431,0.00117341,91199.0,91198.0,0.20119317]
[1764709449665,0.00117341,91199.0,91198.0,0.17483305]
[1764709451839,0.00117341,91199.0,91198.0,0.002]
[1764709451840,0.09141341,91199.0,91198.0,0.002]
[1764709452253,0.31071406,91199.0,91198.0,0.002]
[1764709453789,0.31071406,91199.0,91190.0,0.23028747]
[1764709453790,0.2302768,91195.0,91190.0,0.23028747]
[1764709454109,0.00082244,91191.0,91188.0,0.01096635]
[1764709454389,0.05546,91194.0,91191.0,0.21931988]
[1764709454586,0.01096587,91192.0,91186.0,0.01096659]
[1764709454719,0.06642563,91194.0,91190.0,0.01096611]
[1764709454923,0.05546,91193.0,91192.0,0.21931659]
[1764709455121,0.05546,91193.0,91191.0,0.23028353]
[1764709455392,0.06211,91192.0,91191.0,0.23028353]
[1764709455989,0.11757,91192.0,91191.0,0.23028353]
[1764709457301,0.11757,91192.0,91191.0,0.23128353]
[1764709457522,0.11757,91192.0,91191.0,0.21931988]
[1764709457741,0.11757,91192.0,91191.0,0.22131988]
[1764709458780,0.11757,91192.0,91191.0,0.002]
[1764709459044,0.11757,91192.0,91191.0,0.22131988]
[1764709459297,0.11757,91192.0,91191.0,0.002]
[1764709459596,0.00011608,91199.0,91197.0,0.21930545]
[1764709459838,0.00011608,91199.0,91198.0,0.21930305]
[1764709460040,0.00011608,91199.0,91197.0,0.21930532]
[1764709460252,0.09024,91198.0,91197.0,0.21930532]
[1764709460972,0.09024,91198.0,91197.0,0.22030532]
[1764709461181,0.09024,91198.0,91197.0,0.21930532]
[1764709461288,0.09024,91198.0,91197.0,0.22030532]
[1764709461667,0.09024,91198.0,91196.0,0.23027271]
[1764709461668,0.09024,91198.0,91196.0,0.21930696]
[1764709461882,0.00011608,91199.0,91196.0,0.21930696]
[1764709461883,0.11765318,91197.0,91196.0,0.21930696]
[1764709462087,0.11865179,91197.0,91196.0,0.21930696]
[1764709462911,0.21930786,91196.0,91192.0,0.01096587]
[1764709463239,0.03478,91191.0,91188.0,0.21932691]
[1764709463523,0.03478,91190.0,91189.0,0.21932469]
[1764709463730,0.05546,91193.0,91191.0,0.21931936]
[1764709463931,0.08287378,91195.0,91192.0,0.01096587]
[1764709464135,0.21931482,91194.0,91192.0,0.001]
[1764709464397,0.21931482,91194.0,91190.0,0.23028628]
[1764709464398,0.25409512,91193.0,91190.0,0.23028628]
[1764709464584,0.03478,91191.0,91190.0,0.23028628]
[1764709464931,0.09024,91191.0,91190.0,0.23028628]
[1764709465137,0.01096623,91189.0,91182.0,0.01096707]
[1764709465342,0.03837887,91196.0,91191.0,0.01096599]
[1764709465343,0.02741348,91196.0,91191.0,0.01096599]
[1764709465542,0.02741348,91196.0,91188.0,0.23029231]
[1764709465543,0.23028236,91193.0,91188.0,0.23029231]
[1764709465747,0.23029333,91189.0,91181.0,0.01096719]
[1764709465960,0.03478,91187.0,91185.0,0.21933356]
[1764709466296,0.05546,91188.0,91187.0,0.2193295]
[1764709466510,0.03478,91186.0,91185.0,0.23030103]
[1764709466721,0.03478,91186.0,91183.0,0.01096695]
[1764709466885,0.03478,91184.0,91183.0,0.01096695]
[1764709467063,0.03478,91184.0,91183.0,0.2303053]
[1764709467290,0.09024,91184.0,91183.0,0.21933913]
[1764709468199,0.09024,91184.0,91181.0,0.01096719]
[1764709468416,0.05546,91183.0,91182.0,0.21934144]
[1764709468618,0.03478,91182.0,91181.0,0.01096719]
[1764709468821,0.03478,91182.0,91181.0,0.23031113]
[1764709469161,0.09024,91182.0,91181.0,0.23031113]
[1764709470335,0.09024,91182.0,91181.0,0.23231113]
[1764709471366,0.05546,91204.0,91198.0,0.21930305]
[1764709471547,0.09035608,91199.0,91198.0,0.21930305]
[1764709472026,0.09035608,91199.0,91192.0,0.23027987]
[1764709472027,0.01096515,91198.0,91189.0,0.01096623]
[1764709472244,0.11765288,91198.0,91196.0,0.2193057]
[1764709472660,0.09024,91197.0,91196.0,0.2193057]
[1764709474827,0.09024,91197.0,91195.0,0.01096551]
[1764709475081,0.01096647,91187.0,91182.0,0.01096707]
[1764709475307,0.08353,91196.0,91188.0,0.21932694]
[1764709475308,0.23028386,91192.0,91188.0,0.21932694]
[1764709475545,0.23028386,91192.0,91187.0,0.01096647]
[1764709475546,0.01096611,91190.0,91187.0,0.21932915]
[1764709475788,0.03339,91188.0,91187.0,0.23029562]
[1764709476028,0.03412435,91188.0,91187.0,0.23029562]
[1764709476276,0.07947435,91188.0,91187.0,0.23029562]
[1764709476750,0.07947435,91188.0,91187.0,0.23129562]
[1764709476983,0.07947435,91188.0,91187.0,0.23029562]
[1764709477247,0.07947435,91188.0,91186.0,0.23029824]
[1764709477522,0.21932673,91189.0,91187.0,0.001]
[1764709477761,0.24674298,91188.0,91187.0,0.001]
[1764709477999,0.05722588,91188.0,91187.0,0.001]
[1764709478240,0.10257588,91188.0,91187.0,0.001]
[1764709478461,0.32190298,91188.0,91187.0,0.001]
[1764709478703,0.23029818,91187.0,91184.0,0.23030343]
[1764709478932,0.02981,91185.0,91184.0,0.23030343]
[1764709479164,0.02981,91185.0,91182.0,0.01096707]
[1764709479371,0.01096647,91187.0,91182.0,0.01096707]
[1764709479372,0.02981,91183.0,91182.0,0.01096707]
[1764709479831,0.07516,91183.0,91182.0,0.2303086]
[1764709481262,0.07516,91183.0,91182.0,0.2313086]
[1764709482154,0.09146,91183.0,91182.0,0.2313086]
[1764709482790,0.09146,91183.0,91182.0,0.001]
[1764709482791,0.31079913,91183.0,91182.0,0.001]
[1764709482992,0.09146,91183.0,91182.0,0.001]
[1764709483397,0.09204751,91183.0,91182.0,0.001]
[1764709483604,0.09204751,91183.0,91182.0,0.22034153]
[1764709485150,0.09204751,91183.0,91182.0,0.001]
[1764709485355,0.31138664,91183.0,91182.0,0.001]
[1764709486606,0.21935409,91177.0,91174.0,0.2303287]
[1764709486814,0.05291,91175.0,91171.0,0.23033517]
[1764709486973,0.02981,91172.0,91171.0,0.23033517]
[1764709487352,0.07516,91172.0,91171.0,0.23033517]
[1764709488871,0.07516,91172.0,91171.0,0.23133517]
[1764709489079,0.07516,91172.0,91171.0,0.23033517]
[1764709489279,0.23564019,91183.0,91171.0,0.23033517]
[1764709489280,0.0163,91183.0,91182.0,0.21934153]
[1764709489471,0.04535,91189.0,91186.0,0.23029842]
[1764709489472,0.02053,91187.0,91186.0,0.23029842]
[1764709490202,0.323,91194.0,91186.0,0.23029842]
[1764709490203,0.21930559,91197.0,91190.0,0.01096611]
[1764709490397,0.00011608,91199.0,91179.0,0.01096743]
[1764709490398,0.02981,91191.0,91179.0,0.01096743]
[1764709490571,0.03838139,91190.0,91183.0,0.01096695]
[1764709490901,0.07276528,91190.0,91184.0,0.01096683]
[1764709491053,0.02981,91185.0,91180.0,0.65078095]
[1764709491270,0.02981,91181.0,91180.0,0.87012715]
[1764709491498,0.07516,91181.0,91180.0,0.23031351]
[1764709492584,0.07516,91181.0,91180.0,0.23131351]
[1764709492993,0.07568877,91181.0,91180.0,0.001]
[1764709493403,0.07568877,91181.0,91180.0,0.22034634]
[1764709493579,0.07568877,91181.0,91180.0,0.001]
[1764709493813,0.07568877,91181.0,91180.0,0.22034634]
[1764709494254,0.07568877,91181.0,91180.0,0.001]
[1764709494458,0.07568877,91181.0,91180.0,0.22034634]
[1764709495291,0.00052877,91181.0,91180.0,0.21934634]
[1764709495503,0.00052877,91181.0,91180.0,0.30307796]
[1764709495712,0.00052877,91181.0,91180.0,0.31400869]
[1764709496122,0.00052877,91181.0,91180.0,0.31500869]
[1764709496327,0.00052877,91181.0,91180.0,0.31400869]
[1764709496787,0.00052877,91181.0,91180.0,0.29954634]
[1764709497006,0.00052877,91181.0,91180.0,0.27251634]
[1764709497685,0.00052877,91181.0,91180.0,0.31794634]
[1764709497892,0.00052877,91181.0,91180.0,0.31594634]
[1764709498039,0.00052877,91181.0,91180.0,0.31494634]
[1764709498250,0.00052877,91181.0,91180.0,0.31894634]
[1764709498448,0.00052877,91181.0,91180.0,0.31594634]
[1764709498840,0.00052877,91181.0,91180.0,0.31794634]
[1764709499241,0.00052877,91181.0,91180.0,0.31894634]
[1764709500337,0.03033877,91181.0,91180.0,0.004]
[1764709500545,0.29503271,91181.0,91180.0,0.004]
[1764709500768,0.31860789,91181.0,91180.0,0.004]
[1764709500983,0.31860756,91181.0,91180.0,0.004]
[1764709501163,0.23033286,91173.0,91167.0,0.23034592]
[1764709501401,0.0231,91168.0,91167.0,0.01096888]
[1764709501616,0.0231,91168.0,91165.0,0.01096912]
[1764709501848,0.0231,91177.0,91172.0,0.01096827]
[1764709502047,0.0231,91187.0,91186.0,0.21933191]
[1764709502686,0.02321606,91187.0,91186.0,0.21933191]
[1764709502919,0.00011606,91187.0,91186.0,0.22485992]
[1764709503356,0.00011606,91187.0,91186.0,0.30305992]
[1764709503615,0.00011606,91187.0,91186.0,0.29753191]
[1764709504973,0.00011606,91187.0,91186.0,0.25210191]
[1764709505204,0.00011606,91187.0,91186.0,0.30053191]
[1764709505931,0.00011606,91187.0,91186.0,0.63799426]
[1764709506409,0.00011606,91187.0,91186.0,0.63999426]
[1764709506620,0.00011606,91187.0,91186.0,0.64099426]
[1764709507032,0.00082104,91187.0,91186.0,0.64099426]
[1764709507705,0.00082104,91187.0,91186.0,0.62453191]
[1764709507922,0.00082104,91187.0,91186.0,0.64099426]
[1764709508131,0.00082104,91187.0,91186.0,0.65839426]
[1764709517647,0.0004,91200.0,91186.0,0.65839426]
[1764709517648,0.0004,91200.0,91199.0,0.54230065]
[1764709517854,0.0004,91200.0,91199.0,0.58907065]
[1764709518082,0.0004,91200.0,91199.0,0.63410065]
[1764709518819,0.0004,91200.0,91199.0,0.63510065]
[1764709519863,0.0004,91200.0,91199.0,0.63710065]
[1764709520084,0.0004,91200.0,91199.0,0.63410065]
[1764709520297,0.0004,91200.0,91199.0,0.63510065]
[1764709520460,0.0004,91200.0,91199.0,0.63910065]
[1764709520863,0.0004,91200.0,91199.0,0.70162364]
[1764709522279,0.0004,91210.0,91209.0,0.5422766]
[1764709522484,0.0004,91210.0,91209.0,0.58810895]
[1764709522755,0.0002,91220.0,91219.0,0.54225256]
[1764709522894,0.00031593,91220.0,91219.0,0.58902256]
[1764709523090,0.00031593,91220.0,91219.0,0.63405256]
[1764709523940,0.00031593,91220.0,91219.0,0.69657555]
[1764709524146,0.00031593,91220.0,91219.0,0.69957555]
[1764709524357,0.0004,91240.0,91237.0,0.01096046]
[1764709524588,0.00484,91250.0,91249.0,0.54218048]
[1764709524777,0.00495591,91250.0,91249.0,0.61080048]
[1764709524976,0.0002,91260.0,91259.0,0.54215646]
[1764709525177,0.00058628,91260.0,91259.0,0.67907945]
[1764709525763,0.00058628,91260.0,91259.0,0.68346634]
[1764709526186,0.00058628,91260.0,91259.0,0.69992869]
[1764709526411,1e-08,91260.0,91259.0,0.69992869]
[1764709526631,0.0004,91270.0,91269.0,0.60465544]
[1764709526846,0.0004,91270.0,91269.0,0.67323544]
[1764709527102,0.0004,91270.0,91269.0,0.71826544]
[1764709527533,0.02737895,91311.0,91273.0,0.60464584]
[1764709527747,0.00542,91307.0,91273.0,0.69550819]
[1764709529746,0.00109,91274.0,91273.0,0.69550819]
[1764709529956,0.0026742,91274.0,91273.0,0.69550819]
[1764709531241,0.0109511,91315.0,91273.0,0.69550819]
[1764709531242,0.0002,91320.0,91319.0,0.21901247]
[1764709531460,0.00031582,91320.0,91319.0,0.21901247]
[1764709531674,0.07688582,91320.0,91311.0,0.01736]
[1764709531887,0.03012,91319.0,91316.0,0.01095098]
[1764709532327,0.00031582,91320.0,91319.0,0.21901247]
[1764709532545,0.00031582,91320.0,91319.0,0.24838247]
[1764709533176,0.00031582,91320.0,91319.0,0.29641247]
[1764709533379,0.00031582,91320.0,91319.0,0.29341247]
[1764709533795,0.00031582,91320.0,91319.0,0.31277247]
[1764709533994,0.00031582,91320.0,91319.0,0.31377247]
[1764709534515,0.00031582,91320.0,91319.0,0.31177247]
[1764709534790,0.00031582,91320.0,91319.0,0.29841247]
[1764709535010,0.00031582,91320.0,91319.0,0.22401247]
[1764709535222,0.00031582,91320.0,91319.0,0.24137247]
[1764709535433,0.00031582,91320.0,91319.0,0.24037247]
[1764709535874,0.00031582,91320.0,91319.0,0.24137247]
[1764709536088,0.00031582,91320.0,91319.0,0.23737247]
[1764709536300,0.00031582,91320.0,91319.0,0.23637247]
[1764709536512,0.00031582,91320.0,91319.0,0.23837247]
[1764709536723,0.00031582,91320.0,91313.0,0.01095134]
[1764709536940,0.02164,91319.0,91312.0,0.01095146]
[1764709537168,0.02164,91319.0,91317.0,0.21901579]
[1764709537369,0.02164,91319.0,91316.0,0.01095098]
[1764709537578,0.02164,91319.0,91317.0,0.21901594]
[1764709539504,0.02164,91319.0,91317.0,0.21901573]
[1764709540007,0.02164,91319.0,91317.0,0.22101573]
[1764709540842,0.07478,91318.0,91317.0,0.002]
[1764709541054,0.10215685,91318.0,91317.0,0.002]
[1764709541275,0.42515685,91318.0,91317.0,0.002]
[1764709541484,0.39778,91318.0,91317.0,0.002]
[1764709542104,0.01095182,91309.0,91304.0,0.01095242]
[1764709542368,0.03028,91307.0,91306.0,0.01095218]
[1764709542577,0.0445,91308.0,91306.0,0.01095218]
[1764709542785,0.02311,91305.0,91302.0,0.01095266]
[1764709543195,0.03028,91303.0,91302.0,0.01095266]
[1764709543614,0.07478,91303.0,91302.0,0.01095266]
[1764709543820,0.07478,91303.0,91301.0,0.21905435]
[1764709544043,0.03028,91302.0,91301.0,0.21905435]
[1764709544255,0.03028,91302.0,91298.0,0.23001545]
[1764709544256,0.03028,91302.0,91298.0,0.01095314]
[1764709544463,0.03028,91301.0,91299.0,0.23001336]
[1764709544666,0.03028,91300.0,91299.0,0.23001336]
[1764709545720,0.03028,91300.0,91299.0,0.23201336]
[1764709546150,0.03028,91300.0,91299.0,0.01295302]
[1764709546361,0.03028,91300.0,91299.0,0.23201346]
[1764709546566,0.07478,91300.0,91299.0,0.23201346]
[1764709546973,0.03028,91300.0,91299.0,0.23201346]
[1764709547398,0.29383805,91300.0,91299.0,0.002]
[1764709547604,0.07478,91300.0,91299.0,0.002]
[1764709547810,0.0340623,91305.0,91299.0,0.002]
[1764709547811,0.02311,91305.0,91303.0,0.21905058]
[1764709548018,0.01619,91305.0,91303.0,0.21905058]
[1764709548226,0.01619,91305.0,91304.0,0.21904845]
[1764709548545,0.04737888,91305.0,91304.0,0.21904845]
[1764709548750,0.09187888,91305.0,91304.0,0.21904845]
[1764709549374,0.00090888,91305.0,91304.0,0.24907845]
[1764709549779,0.00090888,91305.0,91304.0,0.22004845]
[1764709550216,0.00090888,91305.0,91304.0,0.21904845]
[1764709551101,0.00090888,91305.0,91304.0,0.29287845]
[1764709551229,0.00090888,91305.0,91304.0,0.31023845]
[1764709551468,0.00090888,91305.0,91304.0,0.31123845]
[1764709551641,0.00090888,91305.0,91304.0,0.31023845]
[1764709552100,0.00090888,91305.0,91304.0,0.31123845]
[1764709552684,0.00090888,91305.0,91304.0,0.31023845]
[1764709553270,0.00090888,91305.0,91304.0,0.63423845]
[1764709554567,0.00090888,91305.0,91304.0,0.63823845]
[1764709556645,0.00090888,91305.0,91304.0,0.29787845]
[1764709556993,0.00090888,91305.0,91304.0,0.03403]
[1764709557205,0.07568888,91305.0,91304.0,0.005]
[1764709557416,0.05356976,91305.0,91304.0,0.005]
[1764709557650,0.23000111,91304.0,91299.0,0.2190593]
[1764709557853,0.02435452,91305.0,91302.0,0.21905281]
[1764709557854,0.02344564,91303.0,91302.0,0.21905281]
[1764709558272,0.02429591,91303.0,91302.0,0.21905281]
[1764709559099,0.02429591,91303.0,91302.0,0.22005281]
[1764709560255,0.00085027,91303.0,91302.0,0.29388281]
[1764709561453,0.00085027,91303.0,91302.0,0.31124281]
[1764709562229,0.00085027,91303.0,91302.0,0.71322815]
[1764709562669,0.00085027,91303.0,91302.0,0.63424281]
[1764709562923,0.00085027,91303.0,91302.0,0.001]
[1764709563171,0.00085027,91303.0,91302.0,0.23741325]
[1764709563419,0.00085027,91303.0,91302.0,0.26644325]
[1764709563657,0.00085027,91303.0,91302.0,0.22005325]
[1764709563873,0.00085027,91303.0,91302.0,0.22105325]
[1764709564074,0.00085027,91303.0,91302.0,0.22005325]
[1764709564279,0.00085027,91303.0,91302.0,0.21905325]
[1764709564486,0.00085027,91303.0,91302.0,0.22105325]
[1764709564689,0.00085027,91303.0,91302.0,0.22005325]
[1764709564894,0.00085027,91303.0,91302.0,0.24908325]
[1764709565139,0.00085027,91303.0,91302.0,0.29688325]
[1764709565991,0.00085027,91303.0,91302.0,0.25208325]
[1764709566165,0.00085027,91303.0,91302.0,0.22305325]
[1764709571416,0.24840112,91303.0,91302.0,0.004]
[1764709571575,0.29184112,91303.0,91302.0,0.004]
[1764709573146,0.29184112,91303.0,91302.0,0.003]
[1764709573350,0.29184112,91303.0,91300.0,0.23000889]
[1764709573550,0.07194,91303.0,91300.0,0.0109529]
[1764709573752,0.21905085,91303.0,91302.0,0.001]
[1764709574198,0.27184676,91303.0,91302.0,0.001]
[1764709574433,0.31528676,91303.0,91302.0,0.001]
[1764709574647,0.21905805,91300.0,91298.0,0.23001582]
[1764709574859,0.03334218,91306.0,91271.0,0.04151]
[1764709574860,0.01095494,91283.0,91271.0,0.04151]
[1764709575068,0.0109541,91290.0,91280.0,0.21910445]
[1764709575069,0.2190952,91285.0,91280.0,0.21910445]
[1764709575294,0.2300508,91286.0,91280.0,0.21910445]
[1764709575498,0.0109541,91290.0,91283.0,0.23005149]
[1764709575499,0.02209,91285.0,91283.0,0.23005149]
[1764709575702,0.02209,91285.0,91284.0,0.21909644]
[1764709576114,0.02220582,91285.0,91284.0,0.21909644]
[1764709577089,0.02220582,91285.0,91275.0,0.0109559]
[1764709577090,0.06166052,91285.0,91275.0,0.0109559]
[1764709577291,0.0285,91284.0,91279.0,0.01095542]
[1764709577473,0.0285,91284.0,91281.0,0.01095518]
[1764709577675,0.0285,91284.0,91281.0,0.23005842]
[1764709577873,0.0285,91284.0,91282.0,0.21910067]
[1764709578133,0.02220582,91285.0,91283.0,0.21909884]
[1764709578339,0.0285,91283.0,91271.0,0.02831638]
[1764709578547,0.01999,91272.0,91266.0,0.03420698]
[1764709578683,0.0109565,91270.0,91264.0,0.23010145]